Workbook

Sheet TOP STAY SQ NEW
A1: TOP STAY SQ NEW | H1: Счетчик списка SQ: | J1: 1
G7: Материал | H7: Вес 1м2 | I7: Расчет | J7: Формула
A8: 1 | B8: 1. Введите размеры фасада и вес ручки: | G8: ДСП 16 мм | H8: 10.9 | I8: =B10*C10/1000000*H8+E10/1000 -> 4.074 | J8: Х
B9: Высота, миллиметры (max. 500мм) | C9: Ширина, миллиметры | D9: + | E9: Вес ручки, граммы | G9: ДСП 18 мм | H9: 12.2 | I9: =B10*C10/1000000*H9+E10/1000 -> 4.542 | J9: =IF(J1=2,I9,J10) -> 0
B10: 600 | C10: 600 | E10: 150 | G10: МДФ 16 мм | H10: 12.1 | I10: =B10*C10/1000000*H10+E10/1000 -> 4.506 | J10: =IF(J1=3,I10,J11) -> 0
A11: 2 | B11: 2. Из раскрывающегося списка выберите материал фасада и получите значение индекса | G11: МДФ 18/19 мм | H11: 14.5 | I11: =B10*C10/1000000*H11+E10/1000 -> 5.37 | J11: =IF(J1=4,I11,J12) -> 0
C12: Вес фасада, кг. | D12: Индекс | G12: Массив дерева 16 мм | H12: 11 | I12: =B10*C10/1000000*H12+E10/1000 -> 4.11 | J12: =IF(J1=5,I12,J13) -> 0
C13: =IF(J1=1,I8,J9) -> 4.07 | D13: =C13*B10 -> 2444 | G13: Массив дерева 18 мм | H13: 12 | I13: =B10*C10/1000000*H13+E10/1000 -> 4.47 | J13: =IF(J1=6,I13,J14) -> 0
A14: 3 | B14: 3. Выберите модель подъемного механизма TOP STAYS SQ NEW соответствующего полученному индексу и подходящей высоте фасада. Значение индекса должно попадать в пределы значений для отдельного механизма. Чем ближе индекс к среднему значению тем проще будет осуществляться регулировка механизма. | G14: Алюминиевая рамка со стеклом | H14: 11.2 | I14: =B10*C10/1000000*H14+E10/1000 -> 4.182 | J14: =IF(J1=7,I14,J15) -> 0
B15: Артикул механизма | C15: Пределы значений индекса, h max | D15: Среднее значение индекса
B16: ТOP STAY (SQ02BL) light | C16: 480 - 1250, h=250-400 мм | D16: 865
B17: ТOP STAY (SQ02BM) medium | C17: 960 - 2350, h=250-500 мм | D17: 1655
B18: ТOP STAY (SQ02BH) strong | C18: 1600 - 3600, h=250-500 мм | D18: 2600
B19: ТOP STAY (SQ02BC) extra strong | C19: 2500 - 4500, h=250-600 мм | D19: 3500
A20: WWW.DTCRUSSIA.RU
A24: TOP STAY SQ NEW push | H24: Счетчик списка SQ: | J24: 4
G30: Материал | H30: Вес 1м2 | I30: Расчет | J30: Формула
A31: 1 | B31: 1. Введите размеры фасада и вес ручки: | G31: ДСП 16 мм | H31: 10.9 | I31: =B33*C33/1000000*H31+E33/1000 -> 4.074 | J31: Х
B32: Высота, миллиметры (max. 500мм) | C32: Ширина, миллиметры | D32: + | E32: Вес ручки, граммы | G32: ДСП 18 мм | H32: 12.2 | I32: =B33*C33/1000000*H32+E33/1000 -> 4.542 | J32: =IF(J24=2,I32,J33) -> 5.37
B33: 600 | C33: 600 | E33: 150 | G33: МДФ 16 мм | H33: 12.1 | I33: =B33*C33/1000000*H33+E33/1000 -> 4.506 | J33: =IF(J24=3,I33,J34) -> 5.37
A34: 2 | B34: 2. Из раскрывающегося списка выберите материал фасада и получите значение индекса | G34: МДФ 18/19 мм | H34: 14.5 | I34: =B33*C33/1000000*H34+E33/1000 -> 5.37 | J34: =IF(J24=4,I34,J35) -> 5.37
C35: Вес фасада, кг. | D35: Индекс | G35: Массив дерева 16 мм | H35: 11 | I35: =B33*C33/1000000*H35+E33/1000 -> 4.11 | J35: =IF(J24=5,I35,J36) -> 0
C36: =IF(J24=1,I31,J32) -> 5.37 | D36: =C36*B33 -> 3222 | G36: Массив дерева 18 мм | H36: 12 | I36: =B33*C33/1000000*H36+E33/1000 -> 4.47 | J36: =IF(J24=6,I36,J37) -> 0
A37: 3 | B37: 3. Выберите модель подъемного механизма TOP STAYS SQ NEW соответствующего полученному индексу и подходящей высоте фасада. Значение индекса должно попадать в пределы значений для отдельного механизма. Чем ближе индекс к среднему значению тем проще будет осуществляться регулировка механизма. | G37: Алюминиевая рамка со стеклом | H37: 11.2 | I37: =B33*C33/1000000*H37+E33/1000 -> 4.182 | J37: =IF(J24=7,I37,J38) -> 0
B38: Артикул механизма | C38: Пределы значений индекса, h max | D38: Среднее значение индекса
B39: ТOP STAY (SQ2FBL) light | C39: 580 - 1350, h=250-400 мм | D39: 965
B40: ТOP STAY (SQ2FBM) medium | C40: 1060 - 2450, h=250-500 мм | D40: 1755
B41: ТOP STAY (SQ2FBH) strong | C41: 1800 - 4000, h=250-500 мм | D41: 2900
B42: ТOP STAY (SQ2FBC) extra strong | C42: 2600 - 5000, h=250-600 мм | D42: 3800
A43: WWW.DTCRUSSIA.RU

Sheet TOP STAY SQ
A1: TOP STAY SQ | H1: Счетчик списка SQ: | J1: 3
G7: Материал | H7: Вес 1м2 | I7: Расчет | J7: Формула
A8: 1 | B8: 1. Введите размеры фасада и вес ручки: | G8: ДСП 16 мм | H8: 10.9 | I8: =B10*C10/1000000*H8+E10/1000 -> 6.036 | J8: Х
B9: Высота, миллиметры (max. 500мм) | C9: Ширина, миллиметры | D9: + | E9: Вес ручки, граммы | G9: ДСП 18 мм | H9: 12.2 | I9: =B10*C10/1000000*H9+E10/1000 -> 6.738 | J9: =IF(J1=2,I9,J10) -> 6.684
B10: 900 | C10: 600 | E10: 150 | G10: МДФ 16 мм | H10: 12.1 | I10: =B10*C10/1000000*H10+E10/1000 -> 6.684 | J10: =IF(J1=3,I10,J11) -> 6.684
A11: 2 | B11: 2. Из раскрывающегося списка выберите материал фасада и получите значение индекса | G11: МДФ 18/19 мм | H11: 14.5 | I11: =B10*C10/1000000*H11+E10/1000 -> 7.98 | J11: =IF(J1=4,I11,J12) -> 0
C12: Вес фасада, кг. | D12: Индекс | G12: Массив дерева 16 мм | H12: 11 | I12: =B10*C10/1000000*H12+E10/1000 -> 6.09 | J12: =IF(J1=5,I12,J13) -> 0
C13: =IF(J1=1,I8,J9) -> 6.68 | D13: =C13*B10 -> 6016 | G13: Массив дерева 18 мм | H13: 12 | I13: =B10*C10/1000000*H13+E10/1000 -> 6.63 | J13: =IF(J1=6,I13,J14) -> 0
A14: 3 | B14: 3. Выберите модель подъемного механизма TOP STAYS SQ соответствующего полученному индексу. Значение индекса должно попадать в пределы значений для отдельного механизма. Чем ближе индекс к среднему значению тем проще будет осуществляться регулировка механизма. | G14: Алюминиевая рамка со стеклом | H14: 11.2 | I14: =B10*C10/1000000*H14+E10/1000 -> 6.198 | J14: =IF(J1=7,I14,J15) -> 0
B15: Артикул механизма | C15: Пределы значений индекса | D15: Среднее значение индекса
B16: ТOP STAY (SQ00AL) light | C16: 580 - 1250 | D16: 915
B17: ТOP STAY (SQ00AM) medium | C17: 960 - 2040 | D17: 1500
B18: ТOP STAY (SQ00AH) strong | C18: 1800 - 3500 | D18: 2650
A19: WWW.DTCRUSSIA.RU

Sheet TOP STAY SF
A1: TOP STAY SF | H1: Счетчик списка SF: | J1: 2
G7: Материал | H7: Вес 1м2 | I7: Расчет | J7: Формула
A8: 1 | B8: 1. Введите размеры фасада и вес ручки: | G8: ДСП 16 мм | H8: 10.9 | I8: =B10*C10/1000000*H8+E10/1000 -> 5.382 | J8: Х
B9: Высота, миллиметры (max. 700мм) | C9: Ширина, миллиметры | D9: + | E9: Вес ручки, граммы | G9: ДСП 18 мм | H9: 12.2 | I9: =B10*C10/1000000*H9+E10/1000 -> 6.006 | J9: =IF(J1=2,I9,J10) -> 6.006
B10: 800 | C10: 600 | E10: 150 | G10: МДФ 16 мм | H10: 12.1 | I10: =B10*C10/1000000*H10+E10/1000 -> 5.958 | J10: =IF(J1=3,I10,J11) -> 0
A11: 2 | B11: 2. Из раскрывающегося списка выберите материал фасада и получите значение индекса | G11: МДФ 18/19 мм | H11: 14.5 | I11: =B10*C10/1000000*H11+E10/1000 -> 7.11 | J11: =IF(J1=4,I11,J12) -> 0
C12: Вес фасада, кг. | D12: Индекс | G12: Массив дерева 16 мм | H12: 11 | I12: =B10*C10/1000000*H12+E10/1000 -> 5.43 | J12: =IF(J1=5,I12,J13) -> 0
C13: =IF(J1=1,I8,J9) -> 6.01 | D13: =C13*B10 -> 4805 | G13: Массив дерева 18 мм | H13: 12 | I13: =B10*C10/1000000*H13+E10/1000 -> 5.91 | J13: =IF(J1=6,I13,J14) -> 0
A14: 3 | B14: 3. Выберите модель подъемного механизма TOP STAYS SQ соответствующего полученному индексу. Значение индекса должно попадать в пределы значений для отдельного механизма. Чем ближе индекс к среднему значению тем проще будет осуществляться регулировка механизма. | G14: Алюминиевая рамка со стеклом | H14: 11.2 | I14: =B10*C10/1000000*H14+E10/1000 -> 5.526 | J14: =IF(J1=7,I14,J15) -> 0
B15: Артикул механизма | C15: Пределы значений индекса | D15: Среднее значение индекса
B16: ТOP STAY (SF00AD) extra light | C16: 480 - 1500 | D16: 990
B17: ТOP STAY (SF00AL) light | C17: 750 - 2500 | D17: 1625
B18: ТOP STAY (SF00AM) medium | C18: 1500 - 4900 | D18: 3200
B19: ТOP STAY (SF00AH) strong | C19: 3200 - 9000 | D19: 6100
A20: WWW.DTCRUSSIA.RU

Sheet TOP STAY SE
A1: TOP STAY SE | H1: Счетчик списка SF: | J1: 1
G7: Материал | H7: Вес 1м2 | I7: Расчет | J7: Формула
A8: 1 | B8: 1. Введите размеры фасада и вес ручки: | G8: ДСП 16 мм | H8: 10.9 | I8: =B10*C10/1000000*H8+E10/1000 -> 1.785 | J8: Х
B9: Высота, миллиметры (max. 600мм) | C9: Ширина, миллиметры | D9: + | E9: Вес ручки, граммы | G9: ДСП 18 мм | H9: 12.2 | I9: =B10*C10/1000000*H9+E10/1000 -> 1.98 | J9: =IF(J1=2,I9,J10) -> 0
B10: 300 | C10: 500 | E10: 150 | G10: МДФ 16 мм | H10: 12.1 | I10: =B10*C10/1000000*H10+E10/1000 -> 1.965 | J10: =IF(J1=3,I10,J11) -> 0
A11: 2 | B11: 2. Из раскрывающегося списка выберите материал фасада и получите значение индекса | G11: МДФ 18/19 мм | H11: 14.5 | I11: =B10*C10/1000000*H11+E10/1000 -> 2.325 | J11: =IF(J1=4,I11,J12) -> 0
C12: Вес фасада, кг. | D12: Индекс | G12: Массив дерева 16 мм | H12: 11 | I12: =B10*C10/1000000*H12+E10/1000 -> 1.8 | J12: =IF(J1=5,I12,J13) -> 0
C13: =IF(J1=1,I8,J9) -> 1.79 | D13: =C13*B10 -> 536 | G13: Массив дерева 18 мм | H13: 12 | I13: =B10*C10/1000000*H13+E10/1000 -> 1.95 | J13: =IF(J1=6,I13,J14) -> 0
A14: 3 | B14: 3. Выберите модель подъемного механизма TOP STAYS SE соответствующего полученному индексу. Значение индекса должно попадать в пределы значений для отдельного механизма. Чем ближе индекс к среднему значению тем проще будет осуществляться регулировка механизма. | G14: Алюминиевая рамка со стеклом | H14: 11.2 | I14: =B10*C10/1000000*H14+E10/1000 -> 1.83 | J14: =IF(J1=7,I14,J15) -> 0
B15: Артикул механизма | C15: Пределы значений индекса | D15: Среднее значение индекса
B16: ТOP STAY (SE00AL) light | C16: 200 - 1000 | D16: 600
B17: ТOP STAY (SE00AM) medium | C17: 500 - 1500 | D17: 1000
B18: ТOP STAY (SE00AH) strong | C18: 960 - 2350 | D18: 1655
A19: WWW.DTCRUSSIA.RU
A23: TOP STAY SE push | H23: Счетчик списка SF: | J23: 4
G29: Материал | H29: Вес 1м2 | I29: Расчет | J29: Формула
A30: 1 | B30: 1. Введите размеры фасада и вес ручки: | G30: ДСП 16 мм | H30: 10.9 | I30: =B32*C32/1000000*H30+E32/1000 -> 1.785 | J30: Х
B31: Высота, миллиметры (max. 600мм) | C31: Ширина, миллиметры | D31: + | E31: Вес ручки, граммы | G31: ДСП 18 мм | H31: 12.2 | I31: =B32*C32/1000000*H31+E32/1000 -> 1.98 | J31: =IF(J23=2,I31,J32) -> 2.325
B32: 300 | C32: 500 | E32: 150 | G32: МДФ 16 мм | H32: 12.1 | I32: =B32*C32/1000000*H32+E32/1000 -> 1.965 | J32: =IF(J23=3,I32,J33) -> 2.325
A33: 2 | B33: 2. Из раскрывающегося списка выберите материал фасада и получите значение индекса | G33: МДФ 18/19 мм | H33: 14.5 | I33: =B32*C32/1000000*H33+E32/1000 -> 2.325 | J33: =IF(J23=4,I33,J34) -> 2.325
C34: Вес фасада, кг. | D34: Индекс | G34: Массив дерева 16 мм | H34: 11 | I34: =B32*C32/1000000*H34+E32/1000 -> 1.8 | J34: =IF(J23=5,I34,J35) -> 0
C35: =IF(J23=1,I30,J31) -> 2.33 | D35: =C35*B32 -> 698 | G35: Массив дерева 18 мм | H35: 12 | I35: =B32*C32/1000000*H35+E32/1000 -> 1.95 | J35: =IF(J23=6,I35,J36) -> 0
A36: 3 | B36: 3. Выберите модель подъемного механизма TOP STAYS SE соответствующего полученному индексу. Значение индекса должно попадать в пределы значений для отдельного механизма. Чем ближе индекс к среднему значению тем проще будет осуществляться регулировка механизма. | G36: Алюминиевая рамка со стеклом | H36: 11.2 | I36: =B32*C32/1000000*H36+E32/1000 -> 1.83 | J36: =IF(J23=7,I36,J37) -> 0
B37: Артикул механизма | C37: Пределы значений индекса | D37: Среднее значение индекса
B38: ТOP STAY (SE2FAL) light | C38: 200 - 1000 | D38: 600
B39: ТOP STAY (SE2FAM) medium | C39: 500 - 1400 | D39: 950
B40: ТOP STAY (SE2FAH) strong | C40: 960 - 2050 | D40: 1505
A41: WWW.DTCRUSSIA.RU

Sheet TOP STAY ST
A1: TOP STAY ST | H1: Счетчик списка SQ: | J1: 6
G7: Материал | H7: Вес 1м2 | I7: Расчет | J7: Формула
A8: 1 | B8: 1. Введите общий размер двух фасадов и вес ручки: | G8: ДСП 16 мм | H8: 10.9 | I8: =B10*C10/1000000*H8+E10/1000 -> 4.074 | J8: Х
B9: Высота, миллиметры (max. 1040мм) | C9: Ширина, миллиметры | D9: + | E9: Вес ручки, граммы | G9: ДСП 18 мм | H9: 12.2 | I9: =B10*C10/1000000*H9+E10/1000 -> 4.542 | J9: =IF(J1=2,I9,J10) -> 4.47
B10: 720 | C10: 500 | E10: 150 | G10: МДФ 16 мм | H10: 12.1 | I10: =B10*C10/1000000*H10+E10/1000 -> 4.506 | J10: =IF(J1=3,I10,J11) -> 4.47
A11: 2 | B11: 2. Из раскрывающегося списка выберите материал фасада и получите вес фасада | G11: МДФ 18/19 мм | H11: 14.5 | I11: =B10*C10/1000000*H11+E10/1000 -> 5.37 | J11: =IF(J1=4,I11,J12) -> 4.47
C12: Вес фасада, кг. | D12: Высота фасада, мм. | G12: Массив дерева 16 мм | H12: 11 | I12: =B10*C10/1000000*H12+E10/1000 -> 4.11 | J12: =IF(J1=5,I12,J13) -> 4.47
C13: =IF(J1=1,I8,J9) -> 4.47 | D13: =B10 -> 720 | G13: Массив дерева 18 мм | H13: 12 | I13: =B10*C10/1000000*H13+E10/1000 -> 4.47 | J13: =IF(J1=6,I13,J14) -> 4.47
A14: 3 | B14: 3. Выберите модель подъемного механизма TOP STAYS ST соответствующего полученному значению веса фасада и его высоты. Значения веса и высоты фасада должны попадать в пределы значений для отдельного артикула механизма. Чем ближе ваши значения к средним значениям веса и высоты, тем проще будет осуществляться регулировка механизма. При значениях веса близких к границе диапазона работы модели механизма, выбирайте модель рассчитанную на больший вес. | G14: Алюминиевая рамка со стеклом | H14: 11.2 | I14: =B10*C10/1000000*H14+E10/1000 -> 4.182 | J14: =IF(J1=7,I14,J15) -> 0
B15: Артикул механизма | C15: Вес фасада, кг. | D15: Высота фасада, мм.
B16: ТOP STAY (ST01AL) light | C16: 5,0 - 10,0 | D16: 480 - 529
B17: ТOP STAY (ST01AM) medium | C17: 9,6 - 16,0 | D17: 480 - 529
B18: ТOP STAY (ST02AL) light | C18: 4,5 - 8,9 | D18: 530 - 589
B19: ТOP STAY (ST02AM) medium | C19: 8,7 - 14,4 | D19: 530 - 589
B20: ТOP STAY (ST03AL) light | C20: 4,1 - 8,1 | D20: 590 - 649
B21: ТOP STAY (ST03AM) medium | C21: 7,8 - 13,0 | D21: 590 - 649
B22: ТOP STAY (ST04AL) light | C22: 3,7 - 7,2 | D22: 650 - 729
B23: ТOP STAY (ST04AM) medium | C23: 7,0 - 11,6 | D23: 650 - 729
B24: ТOP STAY (ST04AH) strong | C24: 11,5 - 19,8 | D24: 650 - 729
B25: ТOP STAY (ST05AL) light | C25: 3,2 - 6,5 | D25: 730 - 799
B26: ТOP STAY (ST05AM) medium | C26: 6,3 - 10,6 | D26: 730 - 799
B27: ТOP STAY (ST05AH) strong | C27: 10,5 - 18,1 | D27: 730 - 799
B28: ТOP STAY (ST06AM) medium | C28: 5,8 - 9,6 | D28: 800 - 879
B29: ТOP STAY (ST06AH) strong | C29: 9,5 - 16,5 | D29: 800 - 879
B30: ТOP STAY (ST07AM) medium | C30: 5,2 - 8,8 | D30: 880 - 959
B31: ТOP STAY (ST07AH) strong | C31: 8,7 - 15,1 | D31: 880 - 959
B32: ТOP STAY (ST08AM) strong | C32: 4,8 - 8,1 | D32: 960 - 1040
B33: ТOP STAY (ST08AH) strong | C33: 8,0 - 13,9 | D33: 960 - 1040
A34: WWW.DTCRUSSIA.RU
